bitfinex/quotes_ETHUSD_20240731
["timestamp","ask_amount","ask_price","bid_price","bid_amount"]
[1722385422142,9.47862315,3271.2,3271.1,0.5450638]
[1722385424277,12.53560315,3271.2,3271.1,0.5450638]
[1722385424645,13.08560315,3271.2,3271.1,0.5450638]
[1722385425241,10.02862315,3271.2,3271.1,0.5450638]
[1722385425443,13.08560315,3271.2,3271.1,0.5450638]
[1722385427061,16.14258315,3271.2,3271.1,0.5450638]
[1722385427643,13.40459451,3271.2,3271.1,0.5450638]
[1722385427843,15.62952901,3271.2,3271.1,0.5450638]
[1722385428372,13.40459451,3271.2,3271.1,0.5450638]
[1722385428579,3.05754,3270.7,3269.5,2.3567]
[1722385428779,3.05754,3270.7,3269.5,2.80968217]
[1722385428780,3.05794,3270.2,3269.5,2.80968217]
[1722385428946,3.05794,3270.2,3269.5,0.45298217]
[1722385428947,5.475,3270.0,3269.5,0.45298217]
[1722385429147,5.475,3270.0,3268.6,2.33062736]
[1722385429148,3.05892,3269.2,3268.6,2.33062736]
[1722385429482,0.05795496,3269.1,3268.6,2.33062736]
[1722385429787,0.05795496,3269.1,3268.8,3.05916]
[1722385429956,3.05847,3269.6,3268.9,2.3288]
[1722385430161,4.3296561,3269.8,3268.9,8.50823831]
[1722385430162,0.05777985,3269.0,3268.9,8.50823831]
[1722385430501,0.05777985,3269.0,3268.9,8.44706]
[1722385430641,0.95325367,3269.9,3269.2,3.05878]
[1722385430841,1.01124703,3269.8,3269.3,3.0587]
[1722385431072,1.01124703,3269.8,3268.7,2.4474]
[1722385431073,0.05799336,3269.8,3268.7,2.4474]
[1722385431350,0.05799336,3269.8,3269.7,2.4474]
[1722385431682,0.95325367,3269.8,3269.7,2.4474]
[1722385431898,1.00999946,3269.8,3269.7,2.4474]
[1722385432046,1.00999946,3269.8,3269.3,2.456]
[1722385432571,0.05674579,3269.8,3269.3,2.456]
[1722385432777,0.05674579,3269.8,3269.4,3.05858]
[1722385432976,0.95325367,3270.0,3269.5,3.0585]
[1722385433284,1.01006999,3269.9,3269.3,5.76034]
[1722385433494,1.01006999,3269.9,3269.3,5.76029]
[1722385433707,0.05681632,3269.9,3269.5,3.05848]
[1722385434057,0.05681632,3269.9,3269.3,2.7016]
[1722385434388,1.01006999,3269.9,3269.3,5.76034]
[1722385434912,1.01006999,3269.9,3269.3,3.30434]
[1722385435058,1.01006999,3269.9,3269.1,3.0589]
[1722385435059,0.05681632,3269.9,3269.2,3.0588]
[1722385435258,0.05681632,3269.9,3269.3,3.05868]
[1722385435259,0.95274199,3269.8,3269.3,3.05868]
[1722385435460,0.05681632,3269.9,3269.1,5.38827]
[1722385435461,0.05686433,3269.7,3269.1,5.38827]
[1722385435655,4.01108199,3269.8,3269.1,5.38827]
[1722385435903,3.11526627,3269.7,3269.1,2.3294]
[1722385436118,0.05687627,3269.7,3269.1,5.38832]
[1722385436670,0.05687627,3269.7,3269.1,5.38829]
[1722385436871,0.05687627,3269.7,3269.1,2.3294]
[1722385437102,0.59069536,3269.7,3269.1,2.3294]
[1722385437497,0.59069536,3269.7,3269.1,5.38834]
[1722385437679,0.05687627,3269.7,3269.1,5.38834]
[1722385437889,3.05849,3269.6,3269.1,2.3294]
[1722385438286,0.05675138,3269.5,3269.1,2.3294]
[1722385438484,0.05675138,3269.5,3269.1,5.38834]
[1722385438889,4.01074004,3269.8,3269.1,5.38834]
[1722385439196,0.05681099,3269.7,3269.1,5.38834]
[1722385440015,3.05848,3269.6,3269.1,2.3294]
[1722385440218,0.0567762,3269.5,3269.1,2.3294]
[1722385440580,3.05844,3269.7,3269.1,2.3294]
[1722385440780,0.05680379,3269.6,3269.1,2.3294]
[1722385441331,0.05680379,3269.6,3269.1,5.38833]
[1722385441618,0.95245004,3269.8,3269.2,0.06117541]
[1722385441817,0.95245004,3270.2,3269.8,2.2707]
[1722385442021,0.95245004,3270.3,3270.1,3.058]
[1722385442205,0.95245004,3270.6,3270.1,3.058]
[1722385442522,1.26993339,3270.7,3270.3,3.05777]
[1722385442523,0.95245004,3270.7,3270.3,3.05777]
[1722385442822,0.95245004,3270.9,3270.7,3.05736]
[1722385443040,0.95245004,3271.0,3270.7,3.05736]
[1722385443183,0.95245004,3271.1,3270.7,3.05736]
[1722385443515,0.95245004,3271.1,3270.8,3.05733]
[1722385443718,0.95245004,3271.1,3271.0,3.05716]
[1722385443887,0.95245004,3271.4,3271.1,0.2]
[1722385444091,3.05642,3271.8,3271.1,3.25704]
[1722385444291,0.95232137,3271.5,3271.1,3.257]
[1722385444583,0.95232137,3271.5,3271.2,3.05691]
[1722385445824,0.95232137,3271.5,3271.3,3.05686]
[1722385446120,0.95232137,3271.5,3271.4,3.05679]
[1722385446331,0.95232137,3271.6,3271.4,2.3802]
[1722385446482,0.95232137,3271.7,3271.4,2.3802]
[1722385446689,3.05638,3271.9,3271.2,3.05695]
[1722385446887,0.95233335,3271.7,3271.2,3.05695]
[1722385447185,0.95233335,3271.7,3271.4,3.05678]
[1722385447786,0.95233335,3271.8,3271.4,3.05672]
[1722385447981,0.95233335,3271.9,3271.4,6.11345]
[1722385448388,0.95233335,3271.9,3271.4,3.05672]
[1722385448818,0.95233335,3271.9,3271.2,3.05689]
[1722385449327,0.95233335,3271.9,3271.4,3.05672]
[1722385449528,0.95233335,3271.9,3271.5,3.05667]
[1722385449690,0.95233335,3271.9,3271.3,3.05688]
[1722385450229,1.78016846,3271.9,3271.1,3.257]
[1722385450433,4.00877335,3271.8,3271.1,3.257]
[1722385450863,0.95233335,3271.8,3271.2,3.05696]
[1722385451561,0.05574423,3271.7,3271.2,3.05696]
[1722385452072,0.05573706,3271.6,3271.2,3.05696]
[1722385452429,4.00877335,3271.8,3271.1,0.2]
[1722385452629,3.05671,3271.5,3271.1,0.2]
[1722385452825,1.00794128,3271.4,3271.1,0.2]
[1722385453070,0.05560793,3271.4,3271.1,0.2]
[1722385453279,0.05560793,3271.4,3271.2,3.0569]
[1722385453631,0.05560793,3271.4,3271.1,0.2]
[1722385453632,0.05560793,3271.4,3271.3,3.05688]
[1722385454089,0.05596591,3271.4,3271.3,3.05688]
[1722385454252,0.95205518,3271.7,3271.1,0.2]
[1722385454581,0.05600031,3271.6,3271.2,3.05697]
[1722385454779,1.00805549,3271.6,3271.1,0.2]
[1722385455133,0.95205518,3271.5,3271.1,0.2]
[1722385455678,0.05597952,3271.4,3271.1,0.2]
[1722385455983,3.95205518,3271.7,3271.1,0.2]
[1722385456145,0.05595874,3271.3,3271.1,0.2]
[1722385456481,4.77983739,3271.7,3271.3,3.05688]
[1722385456870,0.95205518,3271.7,3271.5,3.05661]
[1722385457069,0.95205518,3271.9,3271.5,3.05661]
[1722385457253,0.95205518,3271.9,3271.6,3.0566]
[1722385457646,0.95205518,3271.9,3271.4,3.05671]
[1722385457867,0.95205518,3271.9,3271.6,3.0566]
[1722385458278,1.17420139,3271.9,3271.4,3.05671]
[1722385458495,0.95205518,3271.8,3271.2,3.05694]
[1722385458684,0.95205518,3271.8,3271.3,3.05683]
[1722385458895,1.17420139,3271.9,3271.4,3.05678]
[1722385459897,1.17420139,3271.9,3271.2,3.05692]
[1722385460050,0.95205518,3271.8,3271.2,3.05692]
[1722385460676,0.95205518,3271.8,3271.3,3.05687]
[1722385460881,0.95205518,3271.9,3271.4,3.05678]
[1722385461061,0.95205518,3272.0,3271.5,3.05669]
[1722385461873,0.95205518,3271.9,3271.3,3.05683]
[1722385462897,0.95238864,3271.9,3271.1,0.2]
[1722385463057,0.95238864,3272.0,3271.4,3.05672]
[1722385463257,0.95237855,3272.0,3271.4,3.05672]
[1722385463679,0.95237855,3272.0,3271.2,3.05692]
[1722385463892,0.95237855,3271.9,3271.4,3.05674]
[1722385464199,1.68498036,3272.0,3271.4,3.05672]
[1722385464577,1.68498036,3272.0,3271.1,0.2]
[1722385464787,0.95237855,3272.0,3271.5,2.446]
[1722385465027,3.0,3272.1,3271.5,2.446]
[1722385465028,7.43,3272.3,3271.9,3.05627]
[1722385465344,0.95237855,3272.5,3271.9,0.06112381]
[1722385465490,7.43,3272.7,3271.9,0.06112381]
[1722385465491,7.43,3272.7,3272.0,2.4831]
[1722385465834,7.43,3272.7,3272.1,6.11214]
[1722385466017,7.43,3272.7,3272.1,3.05605]
[1722385466412,0.05237481,3272.6,3272.4,3.0558]
[1722385467013,0.05237481,3272.6,3272.5,3.05576]
[1722385467214,3.0,3273.0,3272.6,3.05562]
[1722385467528,0.05250916,3272.9,3272.7,3.05557]
[1722385467729,0.05250916,3272.9,3272.5,3.05568]
[1722385468115,6.05508,3273.3,3272.5,3.05568]
[1722385468441,1.44374586,3273.2,3272.5,3.05568]
[1722385468743,0.05259183,3273.1,3272.5,3.05568]
[1722385468948,3.05259183,3273.1,3272.5,3.05568]
[1722385469645,3.05535,3273.0,3272.0,5.5393]
[1722385469950,3.05573,3272.6,3271.8,3.05634]
[1722385470244,3.10828903,3272.5,3271.8,3.05634]
[1722385470565,3.05586,3272.4,3271.7,3.05649]
[1722385470739,0.05252903,3272.5,3271.8,3.05642]
[1722385471049,0.0524774,3272.4,3271.8,3.05642]
[1722385471286,0.0524774,3272.4,3271.6,5.45754]
[1722385471287,3.1083474,3272.4,3271.6,8.51405]
[1722385471555,3.1083474,3272.4,3271.7,3.05647]
[1722385472044,3.1083474,3272.4,3271.3,7.43]
[1722385472045,3.05612,3272.2,3271.5,3.05668]
[1722385472260,0.05253896,3272.1,3271.5,3.05668]
[1722385472577,0.05253896,3272.1,3271.5,3.05662]
[1722385472764,0.05253896,3272.1,3271.6,3.0566]
[1722385472928,3.05609,3272.2,3271.6,3.0566]
[1722385473245,0.05253896,3272.1,3271.6,3.0566]
[1722385473460,0.05253896,3272.1,3271.3,7.43]
[1722385473461,0.36340186,3272.1,3271.3,7.43]
[1722385473622,3.95017561,3272.7,3271.3,7.43]
[1722385473623,3.05645,3271.8,3271.3,7.43]
[1722385473825,0.05237608,3271.7,3271.2,3.05698]
[1722385474016,5.50149,3272.2,3271.4,3.05678]
[1722385474210,3.05245916,3272.1,3271.5,3.05669]
[1722385474505,0.05245916,3272.1,3271.7,3.05644]
[1722385474731,0.05245916,3272.1,3271.9,3.05623]
[1722385474937,6.05567,3272.6,3271.9,3.05623]
[1722385475127,0.05240495,3272.0,3271.9,3.05623]
[1722385475327,3.05559,3272.7,3272.1,3.05613]
[1722385475511,3.0,3272.6,3272.1,3.05613]
[1722385475855,0.05252955,3272.6,3272.2,3.05598]
[1722385476144,3.05577,3272.5,3271.7,38.05643]
[1722385476391,0.05248822,3272.5,3271.9,3.05631]
[1722385477472,0.05248822,3272.5,3271.7,3.05643]
[1722385477473,3.05591,3272.4,3271.7,3.05643]
[1722385477771,3.05251595,3272.3,3271.7,3.05643]
[1722385478070,3.05251595,3272.3,3271.8,3.05636]
[1722385478274,0.05251595,3272.3,3271.9,3.05631]
[1722385478473,3.0,3272.7,3271.9,3.05631]
[1722385478676,0.05258928,3272.6,3272.1,3.05613]
[1722385478835,3.05258928,3272.6,3272.1,3.05613]
[1722385479236,3.05258928,3272.6,3272.0,3.05622]
[1722385479537,0.05258928,3272.6,3272.1,3.05609]
[1722385479854,3.0,3272.7,3272.1,3.05609]
[1722385480032,0.05258818,3272.6,3272.1,3.05609]
[1722385480231,0.05258818,3272.6,3271.9,3.05624]
[1722385480731,0.05258818,3272.6,3272.0,3.05621]
[1722385480936,0.05258818,3272.6,3272.0,3.05617]
[1722385481249,0.05258818,3272.6,3271.9,3.05626]
[1722385481447,0.05258818,3272.6,3272.0,3.05614]
[1722385481937,0.05258818,3272.6,3272.1,3.05611]
[1722385482137,0.05258818,3272.6,3272.1,3.05607]
[1722385482338,0.05258818,3272.6,3272.4,3.05584]
[1722385482636,0.95139049,3272.9,3272.3,3.05594]
[1722385482836,0.05095101,3272.8,3272.3,3.05594]
[1722385483077,4.0023415,3272.8,3272.3,3.05594]
[1722385483470,4.0023415,3272.8,3272.1,6.11214]
[1722385483771,3.05581,3272.5,3272.0,0.2]
[1722385484003,0.04913409,3272.4,3272.0,0.2]
[1722385484427,3.10503409,3272.4,3272.0,0.2]
[1722385484595,4.00740049,3272.3,3272.0,0.2]
[1722385484799,2.03011401,3272.3,3272.0,0.2]
[1722385485110,0.04919749,3272.2,3272.0,0.2]
[1722385485607,0.95139049,3272.2,3272.0,0.2]
[1722385485923,1.26852066,3272.4,3272.0,0.2]
[1722385485924,0.04915763,3272.1,3272.0,0.2]
[1722385486272,0.95139049,3272.3,3272.0,0.2]
[1722385486478,0.04912693,3272.2,3272.0,0.4]
[1722385486774,0.95139049,3272.3,3272.0,0.4]
[1722385487002,0.04910616,3272.1,3272.0,0.4]
[1722385487175,0.95139049,3272.2,3272.0,0.4]
[1722385487381,0.04910616,3272.1,3272.0,0.4]
[1722385487830,1.00049665,3272.1,3272.0,0.4]
[1722385488438,0.04910616,3272.1,3272.0,0.4]
[1722385489547,1.31762682,3272.1,3272.0,0.4]
[1722385490065,1.26852066,3272.1,3272.0,0.4]
[1722385490350,0.04837206,3272.1,3272.0,0.4]
[1722385490513,0.04837206,3272.1,3272.0,0.6]
[1722385490710,1.27452467,3272.1,3272.0,0.6]
[1722385491038,0.04846516,3272.1,3272.0,0.6]
[1722385491765,1.64108245,3272.1,3272.0,0.6]
[1722385492067,0.04846516,3272.1,3272.0,0.6]
[1722385492267,1.64177274,3272.1,3272.0,0.6]
[1722385492417,1.64179269,3272.1,3272.0,0.6]
[1722385492619,1.64186787,3272.1,3272.0,0.6]
[1722385492957,1.32322782,3272.1,3272.0,0.6]
[1722385493158,1.32322782,3272.1,3272.0,3.65623]
[1722385493159,0.04846516,3272.1,3272.0,3.65623]
[1722385493472,0.95612006,3272.2,3272.1,3.05614]
[1722385493755,1.00444963,3272.2,3272.1,3.05614]
[1722385493963,1.00444963,3272.2,3272.1,6.11228]
[1722385494258,0.04832957,3272.2,3272.1,3.05614]
[1722385494415,1.27476266,3272.3,3272.1,3.05614]
[1722385494628,0.04849199,3272.2,3272.1,3.05614]
[1722385494833,1.59359415,3272.3,3272.2,3.05604]
[1722385495032,0.04851275,3272.3,3272.2,6.11208]
[1722385495248,1.27484321,3272.3,3272.2,6.11201]
[1722385495442,1.32335596,3272.3,3272.2,7.041491]
[1722385495957,0.04851275,3272.3,3272.2,7.041491]
[1722385496174,1.32335596,3272.3,3272.2,3.985451]
[1722385496465,0.04851275,3272.3,3272.2,3.05597]
[1722385497481,1.32325819,3272.3,3272.2,3.05597]
[1722385498028,1.64203452,3272.3,3272.2,3.05597]
[1722385498233,0.04851275,3272.3,3272.2,3.05597]
[1722385498951,1.32319417,3272.3,3272.2,3.05597]
[1722385499172,0.04851275,3272.3,3272.2,3.05597]
[1722385499342,1.641851,3272.3,3272.2,3.05597]
[1722385499879,0.04851275,3272.3,3272.2,3.05597]
[1722385500079,1.641851,3272.3,3272.0,6.43902]
[1722385500288,0.95606332,3272.1,3272.0,1.0]
[1722385500449,0.04856974,3272.1,3272.0,1.0]
[1722385500650,1.9120059,3272.3,3272.0,1.0]
[1722385500851,0.04859287,3272.2,3272.0,1.0]
[1722385501157,1.91211106,3272.2,3272.0,1.0]
[1722385501337,0.04853608,3272.1,3272.0,1.0]
[1722385501768,1.64236547,3272.1,3272.0,1.0]
[1722385502084,1.27518242,3272.1,3272.0,1.405632]
[1722385502236,0.95641279,3272.1,3272.0,7.518092]
[1722385502903,0.95641279,3272.2,3272.1,6.11228]
[1722385503293,1.27518242,3272.3,3272.2,3.05604]
[1722385503497,1.91297892,3272.6,3272.3,3.05595]
[1722385503705,9.34297892,3272.7,3272.3,3.05595]
[1722385503934,9.34339077,3272.7,3272.5,3.05569]
[1722385504087,7.43,3272.7,3272.5,3.05569]
[1722385504288,1.91339077,3272.8,3272.5,3.05569]
[1722385504488,1.91339077,3272.9,3272.7,3.05558]
[1722385504709,1.91339077,3272.9,3272.5,3.05569]
[1722385505027,1.91339077,3272.8,3272.5,3.05569]
[1722385505487,1.59466566,3272.7,3272.6,6.11134]
[1722385505679,7.43,3273.2,3272.6,6.11134]
[1722385505680,1.91339077,3272.9,3272.8,3.05548]
[1722385506095,1.91339077,3273.0,3272.9,3.05539]
[1722385506282,7.43,3273.2,3272.8,3.05548]
[1722385506283,1.91339077,3273.1,3272.8,3.05548]
[1722385506504,1.91339077,3273.1,3272.5,2.3743]
[1722385506505,1.91339077,3273.1,3273.0,3.0553]
[1722385506680,9.34339077,3273.2,3273.1,3.0552]
[1722385507127,7.43,3273.2,3273.1,3.0552]
[1722385508328,1.91407709,3273.5,3273.3,3.055]
[1722385508479,9.66308994,3273.8,3273.3,3.055]
[1722385508480,1.91407709,3273.4,3273.3,3.055]
[1722385508680,1.91407709,3273.4,3273.1,3.05513]
[1722385509111,1.91407709,3273.4,3273.2,3.05509]
[1722385509316,1.91407709,3273.5,3273.4,3.05492]
[1722385509700,1.91407709,3273.7,3273.4,3.05492]
[1722385509907,1.91407709,3273.6,3273.3,3.05502]
[1722385510119,7.43,3273.8,3273.3,3.05494]
[1722385510323,1.59446192,3273.4,3273.3,3.05494]
[1722385510700,9.34301499,3273.8,3273.5,3.05477]
[1722385511126,1.59365068,3273.6,3273.5,3.05477]
[1722385511325,7.43,3273.8,3273.5,3.05477]
[1722385511533,0.04753716,3273.6,3273.1,3.05512]
[1722385511834,8.3643015,3273.8,3273.3,3.05501]
[1722385511835,1.59354782,3273.5,3273.3,3.05501]
[1722385512044,1.27484564,3273.4,3273.3,3.05501]
[1722385512330,1.27484564,3273.5,3273.4,3.05492]
[1722385513391,1.27406487,3273.5,3273.4,3.05492]
[1722385513852,1.27406487,3273.6,3273.5,6.10966]
[1722385513992,1.27406487,3273.7,3273.6,3.05474]
[1722385514193,1.27406487,3273.7,3273.4,2.915993]
[1722385514392,0.95530098,3273.6,3273.5,3.05477]
[1722385514620,0.95530098,3273.6,3273.5,6.1096]
[1722385515037,1.27406487,3273.8,3273.6,3.05474]
[1722385515333,1.27406487,3273.8,3273.5,3.05483]
[1722385515543,0.95496476,3273.7,3273.5,3.05483]
[1722385515745,1.27406487,3273.8,3273.6,3.05474]
[1722385516049,1.27406487,3273.8,3273.7,3.05464]
[1722385516791,1.27406487,3273.9,3273.7,3.05464]
[1722385516998,0.95472498,3273.8,3273.7,3.05464]
[1722385517520,0.95472498,3273.8,3273.5,3.05476]
[1722385518060,0.95472498,3273.8,3273.4,2.305]
[1722385518061,0.95472498,3273.7,3273.6,3.05472]
[1722385518221,1.27406487,3273.8,3273.4,3.05486]
[1722385518419,0.95429592,3273.6,3273.4,3.05486]
[1722385518832,0.95429592,3273.7,3273.6,3.05474]
[1722385519018,0.95429592,3273.8,3273.6,3.05474]
[1722385519861,0.95429592,3273.8,3273.7,3.05464]
[1722385520214,0.95429592,3274.0,3273.7,3.05464]
[1722385520415,1.27406487,3274.1,3273.7,3.05464]
[1722385520416,0.95429592,3273.9,3273.7,3.05464]
[1722385520621,0.95429592,3273.9,3273.7,3.05457]
[1722385521022,1.27406487,3274.1,3273.9,3.05446]
[1722385521023,0.95429592,3274.0,3273.9,3.05446]
[1722385521332,0.95429592,3274.2,3273.9,3.05438]
[1722385521597,0.95429592,3274.1,3273.7,3.609867]
[1722385521753,0.95429592,3274.1,3273.8,3.05454]
[1722385522919,0.95429592,3274.1,3273.7,0.555287]
[1722385523123,0.95429592,3274.1,3273.5,2.4983]
[1722385523348,0.95429592,3274.0,3273.5,2.4983]
[1722385523664,0.95429592,3273.9,3273.5,2.4983]
[1722385523957,0.95429592,3273.8,3273.4,3.05483]
[1722385524156,0.04343284,3273.9,3273.4,3.05483]
[1722385524315,0.04338621,3273.7,3273.4,3.588033]
[1722385524516,0.95429592,3273.9,3273.2,3.05504]
[1722385524772,4.00889592,3273.8,3273.2,3.05504]
[1722385524924,4.00907592,3273.6,3273.0,3.05521]
[1722385525124,0.95429592,3273.5,3273.0,3.05521]
[1722385525344,0.99765606,3273.5,3273.0,3.05521]
[1722385525689,0.95429592,3273.3,3272.9,2.2772]
[1722385525898,0.04328761,3273.2,3272.8,3.05543]
[1722385526077,0.95429592,3273.2,3272.9,0.611096]
[1722385526281,0.95429592,3273.2,3272.8,3.05548]
[1722385526447,0.04332857,3273.1,3272.8,3.05548]
[1722385527171,0.95429592,3273.2,3272.7,3.05557]
[1722385527342,0.04326684,3273.0,3272.9,3.05537]
[1722385527562,0.0432876,3273.1,3273.0,3.0553]
[1722385527885,0.95429592,3273.4,3273.0,3.0553]
[1722385528090,0.95429592,3273.3,3273.0,3.0553]
[1722385529002,0.95429592,3273.4,3273.2,3.05511]
[1722385529181,0.95429592,3273.5,3273.3,3.05494]
[1722385529766,1.27406487,3273.7,3273.3,3.05494]
[1722385529767,0.95429592,3273.7,3273.3,3.05494]
[1722385529984,0.95429592,3273.5,3273.3,3.05494]
[1722385530772,0.95429592,3273.6,3273.3,3.05494]
[1722385531199,0.95429592,3273.5,3273.3,3.05494]
[1722385531398,0.95429592,3273.6,3273.3,3.05494]
[1722385531701,0.95429592,3273.6,3273.4,3.05491]
[1722385531866,0.95429592,3273.7,3273.2,2.3831]
[1722385532217,4.00921592,3273.5,3272.9,2.3831]
[1722385532371,1.27406487,3273.6,3272.9,2.3831]
[1722385532372,0.95370786,3273.3,3272.9,6.11067]
[1722385532699,0.95370786,3273.2,3272.9,3.05533]
[1722385533399,0.95370786,3273.6,3273.0,3.05527]
[1722385533553,0.95370786,3273.5,3273.2,3.0551]
[1722385533754,1.27406487,3273.6,3273.2,3.0551]
[1722385533755,0.95370786,3273.4,3273.2,3.0551]
[1722385534568,0.95370786,3273.4,3273.3,3.05502]
[1722385534896,1.58938883,3273.7,3273.3,3.05502]
[1722385534897,0.95370786,3273.5,3273.3,3.05502]
[1722385535502,1.27406487,3273.7,3273.4,3.05492]
[1722385535503,0.95370786,3273.6,3273.4,3.05492]
[1722385535656,0.95370786,3273.6,3273.5,3.05483]
[1722385536282,0.95370786,3273.6,3273.3,8.45135]
[1722385536503,0.95437614,3273.6,3273.4,3.05492]
[1722385536710,1.27406487,3273.8,3273.7,3.05464]
[1722385536916,1.31725036,3273.8,3273.6,3.05474]
[1722385537075,1.31725036,3273.8,3273.7,0.2]
[1722385537716,0.9978691,3273.8,3273.7,3.25464]
[1722385538788,0.99792607,3273.8,3273.7,3.25464]
[1722385539125,0.04318549,3273.8,3273.7,3.25464]
[1722385539316,1.27299784,3273.9,3273.7,3.25464]
[1722385539616,0.04332438,3273.8,3273.7,3.25464]
[1722385539918,0.99815747,3273.8,3273.7,3.580104]
[1722385540070,0.99815747,3273.8,3273.7,6.634744]
[1722385540271,0.99815747,3273.8,3273.7,3.580104]
[1722385541107,0.99825533,3273.8,3273.7,3.580104]
[1722385541279,0.99825533,3273.8,3273.7,6.634744]
[1722385541490,0.99825533,3273.8,3273.7,3.580104]
[1722385541832,0.04332438,3273.8,3273.7,3.580104]
[1722385542329,0.99840716,3273.8,3273.7,3.580104]
[1722385542474,0.99853793,3273.8,3273.7,3.580104]
[1722385543521,0.04332438,3273.8,3273.7,3.580104]
[1722385543734,0.04332438,3273.8,3273.7,6.634744]
[1722385544036,0.04332438,3273.8,3273.7,9.02113106]
[1722385544554,0.95530506,3274.1,3274.0,3.05436]
[1722385545054,1.27299784,3274.2,3274.1,3.05427]
[1722385545234,1.27299784,3274.3,3274.1,3.05427]
[1722385545422,1.59254069,3274.4,3274.2,3.05418]
[1722385545621,10.48364,3274.8,3274.3,3.05408]
[1722385545622,1.59254069,3274.5,3274.3,3.05408]
[1722385546255,1.59254069,3274.4,3274.1,3.05419]
[1722385546451,1.27403956,3274.3,3274.1,3.05419]
[1722385546856,1.27403956,3274.2,3273.7,5.905314]
[1722385547018,0.95548345,3274.0,3273.8,3.05449]
[1722385547352,0.95548345,3274.0,3273.7,0.525464]
[1722385547522,0.95548345,3273.8,3273.7,3.580104]
[1722385548039,1.27403956,3273.9,3273.8,3.05455]
[1722385548410,1.59358414,3274.0,3273.7,3.580094]
[1722385548616,1.27487794,3273.9,3273.7,3.580094]
[1722385548813,1.27487794,3273.9,3273.7,0.2]
[1722385549014,1.59360264,3273.8,3273.7,0.2]
[1722385549458,1.91232317,3274.0,3273.7,0.2]
[1722385549613,4.96659317,3274.1,3273.7,0.2]
[1722385549813,1.91232317,3274.0,3273.7,0.2]
[1722385550014,1.91232317,3274.1,3273.7,0.2]
[1722385550312,1.91232317,3274.0,3273.7,0.2]
[1722385551641,1.91367702,3274.0,3273.7,0.2]
[1722385552362,1.91367702,3273.9,3273.7,0.2]
[1722385552586,2.71591672,3273.9,3273.7,0.2]
[1722385552751,5.77039672,3273.9,3273.7,0.2]
[1722385553065,1.91367702,3273.8,3273.7,0.2]
[1722385553366,3.05448,3273.9,3273.7,0.2]
[1722385553664,3.05455,3273.8,3273.7,0.2]
[1722385554741,5.28777096,3273.9,3273.7,0.2]
[1722385555073,7.62506096,3273.8,3273.7,0.2]
[1722385555719,10.67961096,3273.8,3273.7,0.2]
[1722385556672,8.48822942,3273.8,3273.7,0.2]
[1722385556960,10.72155597,3273.8,3273.7,0.2]
[1722385557884,5.43367942,3273.8,3273.7,0.2]
[1722385558029,7.6668955,3273.8,3273.7,0.2]
[1722385558429,5.43367942,3273.8,3273.7,0.2]
[1722385558861,7.66674227,3273.8,3273.7,0.2]
[1722385559261,7.66663066,3273.8,3273.7,0.2]
[1722385559460,5.43367942,3273.8,3273.7,0.2]
[1722385559965,8.48822942,3273.8,3273.7,0.2]
[1722385560351,5.43367942,3273.8,3273.7,0.2]
[1722385560869,0.04192942,3273.8,3273.7,0.2]
[1722385561038,2.23296604,3274.0,3273.7,0.2]
[1722385561232,1.95288475,3273.8,3273.7,0.2]
[1722385561479,1.9140075,3274.0,3273.7,3.580107]
[1722385561680,0.03887249,3273.8,3273.7,3.580057]
[1722385561984,0.03749303,3273.8,3273.7,3.580057]
[1722385562375,1.59512599,3273.8,3273.7,3.580057]
[1722385562581,1.9140075,3274.1,3273.8,3.05454]
[1722385562790,1.9140075,3274.0,3273.8,3.05454]
[1722385563075,1.9140075,3274.0,3273.7,0.2]
[1722385563285,1.9140075,3273.9,3273.7,0.525466]
[1722385563578,1.91402241,3273.9,3273.7,0.2]
[1722385564686,5.28746615,3274.0,3273.7,0.2]
[1722385564852,1.91353529,3273.8,3273.7,0.2]
[1722385565050,5.28746615,3274.0,3273.7,0.2]
[1722385565241,1.91327225,3273.8,3273.7,0.2]
[1722385565438,1.91327225,3274.0,3273.7,3.25464]
[1722385565670,1.91327225,3274.0,3273.7,0.2]
[1722385565977,1.91327225,3273.9,3273.7,3.25463]
[1722385566180,1.91327225,3274.1,3273.8,3.05454]
[1722385566535,3.05401,3274.4,3273.8,3.05454]
[1722385566760,1.91312724,3274.1,3273.8,3.05454]
[1722385566969,3.05415,3274.3,3273.7,0.830955]
[1722385567254,9.7135,3274.8,3273.9,3.05445]
[1722385567255,1.91267506,3274.2,3273.9,3.05445]
[1722385567680,1.59387584,3274.0,3273.9,3.05446]
[1722385567946,9.7135,3274.8,3273.8,2.2714]
[1722385567947,1.91267506,3274.2,3273.8,2.2714]
[1722385568151,1.59392931,3273.9,3273.8,2.2714]
[1722385568384,1.59392931,3273.9,3273.8,5.57309]
[1722385568803,1.59400187,3273.9,3273.8,5.57302]
[1722385569784,3.05399,3274.4,3273.8,5.57302]
[1722385569982,1.59399673,3273.9,3273.8,2.51854]
[1722385570204,1.91279608,3274.1,3273.8,0.24714]
[1722385570346,1.91279608,3274.1,3273.7,0.2]
[1722385570550,8.02189608,3273.8,3273.7,0.2]
[1722385570747,3.05455,3273.8,3273.7,0.2]
[1722385571198,10.74129542,3273.8,3273.7,0.2]
[1722385571493,10.67430957,3273.8,3273.7,0.2]
[1722385571664,14.98469187,3273.8,3273.7,0.2]
[1722385571900,14.98401795,3273.8,3273.7,0.2]
[1722385572107,12.34861978,3273.8,3273.7,0.2]
[1722385572423,15.40316978,3273.8,3273.7,0.2]
[1722385572592,12.34861978,3273.8,3273.7,0.2]
[1722385572981,10.18401021,3273.8,3273.7,0.2]
[1722385573499,12.34799927,3273.8,3273.7,0.2]
[1722385573706,14.98307124,3273.8,3273.7,0.2]
[1722385573897,12.34799927,3273.8,3273.7,0.2]
[1722385574219,14.98307124,3273.8,3273.7,0.2]
[1722385574927,12.34799927,3273.8,3273.7,0.2]
[1722385575092,14.98259618,3273.8,3273.7,0.2]
[1722385575298,3.05502,3273.3,3272.7,3.05557]
[1722385575625,1.59289199,3272.9,3272.8,0.305557]